lending/lending_fUSD_20260110
["ID","MTS","AMOUNT","RATE_DAILY","PERIOD"]
[401209555,1768045843620,-2000.0,0.00016389,2]
[401209556,1768045843630,-2000.0,0.00016389,2]
[401209557,1768045843639,-2000.0,0.00016389,2]
[401209558,1768045843648,-2000.0,0.00016389,2]
[401209559,1768045843658,-260.75602621,0.000164,2]
[401209560,1768045843667,-252.68743637,0.000164,2]
[401209561,1768045843677,-188.04348929,0.000164,2]
[401209562,1768045843687,-177.21892515,0.000164,2]
[401209563,1768045843695,-834.0,0.000164,2]
[401209564,1768045843705,-150.0,0.00016408,2]
[401209565,1768045843714,-2186.1,0.0001641,2]
[401209566,1768045843723,-150.0,0.0001641,2]
[401209567,1768045843733,-150.0,0.00016412,2]
[401209568,1768045843742,-420.0,0.00016416,2]
[401209569,1768045843752,-260.75602621,0.00016418,2]
[401209570,1768045843761,-252.68743637,0.00016418,2]
[401209571,1768045843771,-188.04348929,0.00016418,2]
[401209572,1768045843780,-177.21892515,0.00016418,2]
[401209573,1768045843790,-150.0,0.00016425,2]
[401209574,1768045843800,-260.75602621,0.00016436,2]
[401209575,1768045843810,-252.68743637,0.00016436,2]
[401209576,1768045843820,-188.04348929,0.00016436,2]
[401209577,1768045843830,-177.21892515,0.00016436,2]
[401209578,1768045843840,-442.0,0.00016437,2]
[401209579,1768045843850,-500.0,0.00016438,2]
[401209580,1768045843860,-500.0,0.00016438,2]
[401209581,1768045843870,-500.0,0.00016438,2]
[401209582,1768045843881,-500.0,0.00016438,2]
[401209583,1768045843891,-500.0,0.00016438,2]
[401209584,1768045843900,-500.0,0.00016438,2]
[401209585,1768045843910,-500.0,0.00016438,2]
[401209586,1768045843920,-500.0,0.00016438,2]
[401209587,1768045843930,-500.0,0.00016438,2]
[401209588,1768045843940,-197.84514683,0.00016438,2]
[401209589,1768045843955,-500.0,0.00016438,2]
[401209590,1768045843965,-500.0,0.00016438,2]
[401209591,1768045843976,-500.0,0.00016438,2]
[401209592,1768045843986,-500.0,0.00016438,2]
[401209593,1768045843996,-500.0,0.00016438,2]
[401209594,1768045844006,-500.0,0.00016438,2]
[401209595,1768045844017,-500.0,0.00016438,2]
[401209596,1768045844027,-500.0,0.00016438,2]
[401209597,1768045844036,-500.0,0.00016438,2]
[401209598,1768045844046,-500.0,0.00016438,2]
[401209599,1768045844056,-500.0,0.00016438,2]
[401209600,1768045844066,-500.0,0.00016438,2]
[401209601,1768045844076,-500.0,0.00016438,2]
[401209602,1768045844087,-600.0,0.00016438,2]
[401209603,1768045844098,-888.0,0.00016438,2]
[401209604,1768045844108,-150.0,0.0001644,2]
[401209605,1768045844119,-150.0,0.0001644,2]
[401209606,1768045844129,-8565.75555911,0.00016444,2]
[401209607,1768045844139,-150.0,0.00016447,2]
[401209608,1768045844150,-260.75602621,0.00016455,2]
[401209609,1768045844160,-252.68743637,0.00016455,2]
[401209610,1768045844171,-188.04348929,0.00016455,2]
[401209611,1768045844181,-177.21892515,0.00016455,2]
[401209612,1768045844192,-150.0,0.0001647,2]
[401209613,1768045844202,-260.75602621,0.00016473,2]
[401209614,1768045844213,-252.68743637,0.00016473,2]
[401209615,1768045844223,-188.04348929,0.00016473,2]
[401209616,1768045844233,-177.21892515,0.00016473,2]
[401209617,1768045844243,-150.0,0.00016477,2]
[401209618,1768045844254,-150.0,0.00016482,2]
[401209619,1768045844263,-260.75602621,0.00016491,2]
[401209620,1768045844273,-252.68743637,0.00016491,2]
[401209621,1768045844283,-188.04348929,0.00016491,2]
[401209622,1768045844293,-177.21892515,0.00016491,2]
[401209623,1768045844303,-442.0,0.00016492,2]
[401209624,1768045844319,-250.0,0.00016499,2]
[401209625,1768045844329,-1680.0,0.00016499,2]
[401209626,1768045844339,-8882.6885148,0.00016499,2]
[401209627,1768045844349,-150.0,0.000165,2]
[401209628,1768045844359,-418.08579202,0.000165,2]
[401209629,1768045844369,-1690.18,0.00016505,2]
[401209630,1768045844379,-260.75602621,0.00016509,2]
[401209631,1768045844389,-252.68743637,0.00016509,2]
[401209632,1768045844398,-188.04348929,0.00016509,2]
[401209633,1768045844408,-177.21892515,0.00016509,2]
[401209634,1768045844418,-1000.0,0.00016515,2]
[401209635,1768045844428,-150.0,0.00016518,2]
[401209636,1768045844439,-1680.0,0.00016521,2]
[401209637,1768045844448,-260.75602621,0.00016527,2]
[401209638,1768045844458,-252.68743637,0.00016527,2]
[401209639,1768045844467,-188.04348929,0.00016527,2]
[401209640,1768045844477,-177.21892515,0.00016527,2]
[401209641,1768045844487,-150.0,0.0001653,2]
[401209642,1768045844497,-260.75602621,0.00016545,2]
[401209643,1768045844507,-252.68743637,0.00016545,2]
[401209644,1768045844517,-188.04348929,0.00016545,2]
[401209645,1768045844527,-177.21892515,0.00016545,2]
[401209646,1768045844536,-150.0,0.00016546,2]
[401209647,1768045844546,-442.0,0.00016547,2]
[401209648,1768045844556,-150.0,0.00016553,2]
[401209649,1768045844565,-805.55508344,0.00016554,2]
[401209650,1768045844575,-194.72792766,0.00016558,2]
[401209651,1768045844585,-150.0,0.0001656,2]
[401209652,1768045844595,-150.0,0.0001656,2]
[401209653,1768045844605,-150.0,0.0001656,2]
[401209654,1768045844615,-260.75602621,0.00016564,2]
[401209655,1768045844626,-252.68743637,0.00016564,2]
[401209656,1768045844636,-188.04348929,0.00016564,2]
[401209657,1768045844646,-177.21892515,0.00016564,2]
[401209658,1768045844655,-500.0,0.0001657,2]
[401209659,1768045844665,-206.72,0.00016576,2]
[401209660,1768045844679,-260.75602621,0.00016582,2]
[401209661,1768045844689,-252.68743637,0.00016582,2]
[401209662,1768045844699,-188.04348929,0.00016582,2]
[401209663,1768045844709,-177.21892515,0.00016582,2]
[401209664,1768045844719,-300.0,0.00016586,2]
[401209665,1768045844729,-193.0,0.00016586,2]
[401209666,1768045844739,-150.0,0.00016588,2]
[401209667,1768045844749,-150.0,0.0001659,2]
[401209668,1768045844759,-1361.94,0.00016599,2]
[401209669,1768045844769,-260.75602621,0.000166,2]
[401209670,1768045844778,-252.68743637,0.000166,2]
[401209671,1768045844787,-188.04348929,0.000166,2]
[401209672,1768045844797,-177.21892515,0.000166,2]
[401209673,1768045844807,-442.0,0.00016602,2]
[401209674,1768045844816,-250.0,0.00016607,2]
[401209675,1768045844826,-289.92966969,0.00016607,2]
[401209676,1768045844837,-193.0,0.00016607,2]
[401209677,1768045844847,-250.0,0.00016607,2]
[401209678,1768045844857,-600.0,0.00016607,2]
[401209679,1768045844871,-195.0,0.00016607,2]
[401209680,1768045844880,-300.0,0.00016607,2]
[401209681,1768045844890,-193.0,0.00016608,2]
[401209682,1768045844900,-195.0,0.00016608,2]
[401209683,1768045844911,-316.77732409,0.00016608,2]
[401209684,1768045844921,-150.0,0.00016615,2]
[401209685,1768045844932,-260.75602621,0.00016618,2]
[401209686,1768045844942,-252.68743637,0.00016618,2]
[401209687,1768045844953,-188.04348929,0.00016618,2]
[401209688,1768045844963,-177.21892515,0.00016618,2]
[401209689,1768045844973,-150.0,0.0001662,2]
[401209690,1768045844983,-150.0,0.00016624,2]
[401209691,1768045844994,-429.31,0.00016635,2]
[401209692,1768045845005,-260.75602621,0.00016636,2]
[401209693,1768045845015,-252.68743637,0.00016636,2]
[401209694,1768045845025,-188.04348929,0.00016636,2]
[401209695,1768045845035,-177.21892515,0.00016636,2]
[401209696,1768045845046,-150.0,0.0001665,2]
[401209697,1768045845056,-150.0,0.0001665,2]
[401209698,1768045845066,-150.0,0.0001665,2]
[401209699,1768045845076,-260.75602621,0.00016655,2]
[401209700,1768045845086,-252.68743637,0.00016655,2]
[401209701,1768045845096,-188.04348929,0.00016655,2]
[401209702,1768045845106,-177.21892515,0.00016655,2]
[401209703,1768045845116,-10861.64380407,0.00016655,2]
[401209704,1768045845126,-442.0,0.00016657,2]
[401209705,1768045845135,-150.0,0.00016659,2]
[401209706,1768045845145,-238.82,0.00016669,2]
[401209707,1768045845156,-260.75602621,0.00016673,2]
[401209708,1768045845166,-252.68743637,0.00016673,2]
[401209709,1768045845175,-188.04348929,0.00016673,2]
[401209710,1768045845185,-177.21892515,0.00016673,2]
[401209711,1768045845195,-150.0,0.0001668,2]
[401209712,1768045845205,-150.0,0.0001668,2]
[401209713,1768045845215,-150.0,0.00016685,2]
[401209714,1768045845225,-260.75602621,0.00016691,2]
[401209715,1768045845234,-252.68743637,0.00016691,2]
[401209716,1768045845243,-188.04348929,0.00016691,2]
[401209717,1768045845253,-177.21892515,0.00016691,2]
[401209718,1768045845262,-150.0,0.00016694,2]
[401209719,1768045845271,-1101.0,0.00016697,2]
[401209720,1768045845281,-260.75602621,0.00016709,2]
[401209721,1768045845291,-252.68743637,0.00016709,2]
[401209722,1768045845301,-188.04348929,0.00016709,2]
[401209723,1768045845310,-177.21892515,0.00016709,2]
[401209724,1768045845320,-150.0,0.0001671,2]
[401209725,1768045845329,-442.0,0.00016711,2]
[401209726,1768045845338,-183.0,0.0001672,2]
[401209727,1768045845348,-260.75602621,0.00016727,2]
[401209728,1768045845358,-252.68743637,0.00016727,2]
[401209729,1768045845368,-188.04348929,0.00016727,2]
[401209730,1768045845378,-177.21892515,0.00016727,2]
[401209731,1768045845387,-150.0,0.00016729,2]
[401209732,1768045845397,-150.0,0.0001674,2]
[401209733,1768045845407,-260.75602621,0.00016745,2]
[401209734,1768045845417,-252.68743637,0.00016745,2]
[401209735,1768045845426,-188.04348929,0.00016745,2]
[401209736,1768045845436,-177.21892515,0.00016745,2]
[401209737,1768045845446,-150.0,0.00016754,2]
[401209738,1768045845455,-318.35,0.00016757,2]
[401209739,1768045845465,-260.75602621,0.00016764,2]
[401209740,1768045845475,-252.68743637,0.00016764,2]
[401209741,1768045845484,-188.04348929,0.00016764,2]
[401209742,1768045845494,-177.21892515,0.00016764,2]
[401209743,1768045845503,-150.0,0.00016765,2]
[401209744,1768045845513,-442.0,0.00016766,2]
[401209745,1768045845523,-150.0,0.0001677,2]
[401209746,1768045845532,-250.39504082,0.00016771,2]
[401209747,1768045845542,-1690.18,0.00016779,2]
[401209748,1768045845555,-260.75602621,0.00016782,2]
[401209749,1768045845565,-252.68743637,0.00016782,2]
[401209750,1768045845575,-188.04348929,0.00016782,2]
[401209751,1768045845584,-177.21892515,0.00016782,2]
[401209752,1768045845594,-500.0,0.00016795,2]
[401209753,1768045845604,-260.75602621,0.000168,2]
[401209754,1768045845614,-252.68743637,0.000168,2]
[401209755,1768045845624,-188.04348929,0.000168,2]
[401209756,1768045845634,-150.0,0.000168,2]
[401209757,1768045845644,-150.0,0.000168,2]
[401209758,1768045845654,-150.0,0.000168,2]
[401209759,1768045845664,-177.21892515,0.000168,2]
[401209760,1768045845673,-206.72,0.00016808,2]
[401209761,1768045845683,-260.75602621,0.00016818,2]
[401209762,1768045845693,-252.68743637,0.00016818,2]
[401209763,1768045845703,-188.04348929,0.00016818,2]
[401209764,1768045845712,-177.21892515,0.00016818,2]
[401209765,1768045845721,-442.0,0.00016821,2]
[401209766,1768045845731,-150.0,0.00016823,2]
[401209767,1768045845741,-150.0,0.0001683,2]
[401209768,1768045845751,-200.0,0.00016833,2]
[401209769,1768045845760,-200.0,0.00016833,2]
[401209770,1768045845770,-150.0,0.00016835,2]
[401209771,1768045845780,-260.75602621,0.00016836,2]
[401209772,1768045845790,-252.68743637,0.00016836,2]
[401209773,1768045845800,-188.04348929,0.00016836,2]
[401209774,1768045845810,-177.21892515,0.00016836,2]
[401209775,1768045845820,-500.0,0.00016844,2]
[401209776,1768045845830,-2186.1,0.00016844,2]
[401209777,1768045845840,-2217.1859506,0.0001685,2]
[401209778,1768045845849,-260.75602621,0.00016855,2]
[401209779,1768045845859,-252.68743637,0.00016855,2]
[401209780,1768045845868,-188.04348929,0.00016855,2]
[401209781,1768045845878,-177.21892515,0.00016855,2]
[401209782,1768045845890,-150.0,0.0001686,2]
[401209783,1768045845901,-1887.20841984,0.00016866,2]
[401209784,1768045845910,-150.0,0.00016871,2]
[401209785,1768045845919,-260.75602621,0.00016873,2]
[401209786,1768045845931,-252.68743637,0.00016873,2]
[401209787,1768045845941,-188.04348929,0.00016873,2]
[401209788,1768045845951,-177.21892515,0.00016873,2]
[401209789,1768045845965,-150.0,0.00016875,2]
[401209790,1768045845975,-442.0,0.00016876,2]
[401209791,1768045845985,-150.0,0.0001689,2]
[401209792,1768045845995,-260.75602621,0.00016891,2]
[401209793,1768045846005,-252.68743637,0.00016891,2]
[401209794,1768045846014,-188.04348929,0.00016891,2]
[401209795,1768045846024,-177.21892515,0.00016891,2]
[401209796,1768045846034,-150.0,0.00016892,2]
[401209797,1768045846043,-154070.04393857,0.00016897,2]
[401209800,1768045847706,-0.0104177,0.00016897,2]
[401209801,1768045848928,-2212.17142583,0.00016897,2]
[401209802,1768045848938,-150.0,0.00016906,2]
[401209803,1768045848947,-260.75602621,0.00016909,2]
[401209804,1768045848957,-252.68743637,0.00016909,2]
[401209805,1768045848967,-188.04348929,0.00016909,2]
[401209806,1768045848976,-177.21892515,0.00016909,2]
[401209807,1768045848986,-150.0,0.0001692,2]
[401209808,1768045848996,-150.0,0.0001692,2]
[401209809,1768045849006,-150.0,0.0001692,2]
[401209810,1768045849015,-260.75602621,0.00016927,2]
[401209811,1768045849025,-252.68743637,0.00016927,2]
[401209812,1768045849035,-188.04348929,0.00016927,2]
[401209813,1768045849045,-177.21892515,0.00016927,2]
[401209814,1768045849054,-442.0,0.0001693,2]
[401209815,1768045849064,-216.0,0.00016932,2]
[401209816,1768045849073,-151.0,0.00016937,2]
[401209817,1768045849083,-187.78006525,0.00016937,2]
[401209818,1768045849092,-197.9969081,0.00016937,2]
[401209819,1768045849103,-151.0,0.00016937,2]
[401209820,1768045849112,-514.84070869,0.00016937,2]
[401209821,1768045849124,-150.0,0.00016941,2]
[401209822,1768045849133,-260.75602621,0.00016945,2]
[401209823,1768045849143,-252.68743637,0.00016945,2]
[401209824,1768045849153,-188.04348929,0.00016945,2]
[401209825,1768045849162,-177.21892515,0.00016945,2]
[401209826,1768045849172,-150.0,0.0001695,2]
[401209827,1768045849182,-150.0,0.00016962,2]
[401209828,1768045849192,-260.75602621,0.00016964,2]
[401209829,1768045849202,-252.68743637,0.00016964,2]
[401209830,1768045849212,-188.04348929,0.00016964,2]
[401209831,1768045849222,-177.21892515,0.00016964,2]
[401209832,1768045849232,-3732.263017,0.00016965,2]
[401209833,1768045849242,-10861.64380407,0.00016966,2]
[401209834,1768045849251,-246690.7537703,0.00016966,2]
[401209835,1768045849261,-131293.3124205,0.00016966,2]
[401209836,1768045849270,-418.08579202,0.00016967,2]
[401209837,1768045849280,-500.0,0.00016972,2]
[401209838,1768045849290,-150.0,0.00016976,2]
[401209839,1768045849300,-150.0,0.0001698,2]
[401209840,1768045849310,-260.75602621,0.00016982,2]
[401209841,1768045849321,-252.68743637,0.00016982,2]
[401209842,1768045849331,-188.04348929,0.00016982,2]
[401209843,1768045849341,-177.21892515,0.00016982,2]
[401209844,1768045849350,-454.28299091,0.00016985,2]
[401209845,1768045849360,-600.0,0.00016986,2]
[401209846,1768045849370,-260.75602621,0.00017,2]
[401209847,1768045849380,-252.68743637,0.00017,2]
[401209848,1768045849390,-188.04348929,0.00017,2]
[401209849,1768045849399,-177.21892515,0.00017,2]
[401209850,1768045849408,-250.0,0.00017,2]
[401209851,1768045849418,-210.20353926,0.00017,2]
[401209852,1768045849428,-150.0,0.0001701,2]
[401209853,1768045849438,-150.0,0.00017012,2]
[401209854,1768045849447,-260.75602621,0.00017018,2]
[401209855,1768045849457,-252.68743637,0.00017018,2]
[401209856,1768045849467,-188.04348929,0.00017018,2]
[401209857,1768045849478,-177.21892515,0.00017018,2]
[401209858,1768045849488,-150.0,0.00017031,2]
[401209859,1768045849498,-260.75602621,0.00017036,2]
[401209860,1768045849508,-252.68743637,0.00017036,2]
[401209861,1768045849519,-188.04348929,0.00017036,2]
[401209862,1768045849530,-177.21892515,0.00017036,2]
[401209863,1768045849540,-150.0,0.0001704,2]
[401209864,1768045849551,-150.0,0.0001704,2]
[401209865,1768045849562,-150.0,0.00017047,2]
[401209866,1768045849573,-1690.18,0.00017053,2]
[401209867,1768045849583,-260.75602621,0.00017055,2]
[401209868,1768045849594,-252.68743637,0.00017055,2]
[401209869,1768045849604,-188.04348929,0.00017055,2]
[401209870,1768045849615,-177.21892515,0.00017055,2]
[401209871,1768045849625,-150.0,0.0001707,2]
[401209872,1768045849635,-260.75602621,0.00017073,2]
[401209873,1768045849645,-252.68743637,0.00017073,2]
[401209874,1768045849656,-188.04348929,0.00017073,2]
[401209875,1768045849667,-177.21892515,0.00017073,2]
[401209876,1768045849677,-1887.20841984,0.00017073,2]
[401209877,1768045849687,-150.0,0.00017082,2]
[401209878,1768045849699,-260.75602621,0.00017091,2]
[401209879,1768045849710,-252.68743637,0.00017091,2]
[401209880,1768045849722,-188.04348929,0.00017091,2]
[401209881,1768045849734,-177.21892515,0.00017091,2]
[401209882,1768045849744,-499.15193806,0.00017099,2]
[401209883,1768045849755,-150.0,0.000171,2]
[401209884,1768045849766,-150.0,0.000171,2]
[401209885,1768045849777,-150.0,0.000171,2]
[401209886,1768045849789,-150.0,0.000171,2]
[401209887,1768045849801,-150.0,0.000171,2]
[401209888,1768045849813,-1069.8949683,0.000171,2]
[401209889,1768045849824,-260.75602621,0.00017109,2]
[401209890,1768045849836,-252.68743637,0.00017109,2]
[401209891,1768045849846,-188.04348929,0.00017109,2]
[401209892,1768045849856,-177.21892515,0.00017109,2]
[401209893,1768045849868,-275.63,0.00017111,2]
[401209894,1768045849879,-1000.0,0.00017112,2]
[401209895,1768045849891,-150.0,0.00017118,2]
[401209896,1768045849902,-536.89418062,0.00017118,2]
[401209897,1768045849912,-260.75602621,0.00017127,2]
[401209898,1768045849923,-252.68743637,0.00017127,2]
[401209899,1768045849934,-188.04348929,0.00017127,2]
[401209900,1768045849945,-177.21892515,0.00017127,2]
[401209901,1768045849957,-150.0,0.0001713,2]
[401209902,1768045849967,-260.75602621,0.00017145,2]
[401209903,1768045849977,-252.68743637,0.00017145,2]
[401209904,1768045849988,-188.04348929,0.00017145,2]
[401209905,1768045850000,-177.21892515,0.00017145,2]
[401209906,1768045850011,-150.0,0.00017153,2]
[401209907,1768045850021,-150.0,0.0001716,2]
[401209908,1768045850031,-150.0,0.0001716,2]
[401209909,1768045850041,-260.75602621,0.00017164,2]
[401209910,1768045850052,-252.68743637,0.00017164,2]
[401209911,1768045850062,-188.04348929,0.00017164,2]
[401209912,1768045850073,-177.21892515,0.00017164,2]
[401209913,1768045850083,-150.0,0.00017169,2]
[401209914,1768045850093,-260.75602621,0.00017182,2]
[401209915,1768045850104,-252.68743637,0.00017182,2]
[401209916,1768045850116,-188.04348929,0.00017182,2]
[401209917,1768045850128,-177.21892515,0.00017182,2]
[401209918,1768045850138,-561.2,0.00017187,2]
[401209919,1768045850149,-150.0,0.00017188,2]
[401209920,1768045850160,-150.0,0.0001719,2]
[401209921,1768045850171,-260.75602621,0.000172,2]
[401209922,1768045850181,-252.68743637,0.000172,2]
[401209923,1768045850192,-188.04348929,0.000172,2]
[401209924,1768045850203,-177.21892515,0.000172,2]
[401209925,1768045850214,-260.75602621,0.00017218,2]
[401209926,1768045850224,-252.68743637,0.00017218,2]
[401209927,1768045850236,-188.04348929,0.00017218,2]
[401209928,1768045850247,-177.21892515,0.00017218,2]
[401209929,1768045850258,-150.0,0.0001722,2]
[401209930,1768045850269,-150.0,0.00017224,2]
[401209931,1768045850280,-260.75602621,0.00017236,2]
[401209932,1768045850291,-252.68743637,0.00017236,2]
[401209933,1768045850302,-188.04348929,0.00017236,2]
[401209934,1768045850313,-177.21892515,0.00017236,2]
[401209935,1768045850323,-150.0,0.00017238,2]
[401209936,1768045850334,-150.0,0.0001725,2]
[401209937,1768045850345,-260.75602621,0.00017255,2]
[401209938,1768045850356,-252.68743637,0.00017255,2]
[401209939,1768045850367,-188.04348929,0.00017255,2]
[401209940,1768045850379,-177.21892515,0.00017255,2]
[401209941,1768045850390,-159.16121496,0.00017256,2]
[401209942,1768045850401,-150.0,0.00017259,2]
[401209943,1768045850412,-561.2,0.00017261,2]
[401209944,1768045850423,-260.75602621,0.00017273,2]
[401209945,1768045850434,-252.68743637,0.00017273,2]
[401209946,1768045850445,-188.04348929,0.00017273,2]
[401209947,1768045850455,-177.21892515,0.00017273,2]
[401209948,1768045850466,-10861.64380407,0.00017277,2]
[401209949,1768045850476,-1887.20841984,0.0001728,2]
[401209950,1768045850487,-150.0,0.0001728,2]
[401209951,1768045850498,-150.0,0.0001728,2]
[401209952,1768045850509,-150.0,0.0001728,2]
[401209953,1768045850520,-260.75602621,0.00017291,2]
[401209954,1768045850531,-252.68743637,0.00017291,2]
[401209955,1768045850542,-188.04348929,0.00017291,2]
[401209956,1768045850552,-177.21892515,0.00017291,2]
[401209957,1768045850563,-150.0,0.00017294,2]
[401209958,1768045850573,-150.0,0.00017308,2]
[401209959,1768045850584,-260.75602621,0.00017309,2]
[401209960,1768045850594,-252.68743637,0.00017309,2]
[401209961,1768045850605,-188.04348929,0.00017309,2]
[401209962,1768045850615,-177.21892515,0.00017309,2]
[401209963,1768045850626,-150.0,0.0001731,2]
[401209964,1768045850636,-1361.94,0.00017321,2]
[401209965,1768045850647,-150.0,0.00017325,2]
[401209966,1768045850657,-1690.18,0.00017327,2]
[401209967,1768045850667,-260.75602621,0.00017327,2]
[401209968,1768045850678,-252.68743637,0.00017327,2]
[401209969,1768045850689,-188.04348929,0.00017327,2]
[401209970,1768045850700,-177.21892515,0.00017327,2]
[401209971,1768045850710,-150.0,0.00017329,2]
[401209972,1768045850721,-561.2,0.00017335,2]
[401209973,1768045850731,-150.0,0.0001734,2]
[401209974,1768045850741,-260.75602621,0.00017345,2]
[401209975,1768045850751,-252.68743637,0.00017345,2]
[401209976,1768045850762,-188.04348929,0.00017345,2]
[401209977,1768045850773,-177.21892515,0.00017345,2]
[401209978,1768045850783,-260.75602621,0.00017364,2]
[401209979,1768045850793,-252.68743637,0.00017364,2]
[401209980,1768045850804,-188.04348929,0.00017364,2]
[401209981,1768045850815,-177.21892515,0.00017364,2]
[401209982,1768045850825,-150.0,0.00017365,2]
[401209983,1768045850836,-150.0,0.0001737,2]
[401209984,1768045850847,-150.0,0.00017377,2]
[401209985,1768045850858,-200.0,0.00017381,2]
[401209986,1768045850869,-200.0,0.00017381,2]
[401209987,1768045850879,-260.75602621,0.00017382,2]
[401209988,1768045850891,-252.68743637,0.00017382,2]
[401209989,1768045850905,-188.04348929,0.00017382,2]
[401209990,1768045850921,-177.21892515,0.00017382,2]
[401209991,1768045850936,-177557.752394,0.00017383,2]
[401209992,1768045850948,-260.75602621,0.000174,2]
[401209993,1768045850962,-252.68743637,0.000174,2]
[401209994,1768045850980,-188.04348929,0.000174,2]
[401209995,1768045850995,-150.0,0.000174,2]
[401209996,1768045851011,-150.0,0.000174,2]
[401209997,1768045851025,-150.0,0.000174,2]
[401209998,1768045851037,-177.21892515,0.000174,2]
[401209999,1768045851051,-561.2,0.00017409,2]
[401210000,1768045851065,-260.75602621,0.00017418,2]
[401210001,1768045851081,-252.68743637,0.00017418,2]
[401210002,1768045851096,-188.04348929,0.00017418,2]
[401210003,1768045851111,-177.21892515,0.00017418,2]
[401210004,1768045851124,-2220.95761224,0.0001742,2]
[401210005,1768045851141,-150.0,0.0001743,2]
[401210006,1768045851156,-418.08579202,0.00017433,2]
[401210007,1768045851169,-150.0,0.00017435,2]
[401210008,1768045851183,-260.75602621,0.00017436,2]
[401210009,1768045851196,-252.68743637,0.00017436,2]
[401210010,1768045851213,-188.04348929,0.00017436,2]
[401210011,1768045851226,-177.21892515,0.00017436,2]
[401210012,1768045851240,-150.0,0.00017446,2]
[401210013,1768045851252,-260.75602621,0.00017455,2]
[401210014,1768045851264,-252.68743637,0.00017455,2]
[401210015,1768045851279,-188.04348929,0.00017455,2]
[401210016,1768045851293,-177.21892515,0.00017455,2]
[401210017,1768045851304,-150.0,0.0001746,2]
[401210018,1768045851315,-4337.0,0.0001746,2]
[401210019,1768045851330,-150.0,0.00017471,2]
[401210020,1768045851345,-260.75602621,0.00017473,2]
[401210021,1768045851357,-252.68743637,0.00017473,2]
[401210022,1768045851368,-188.04348929,0.00017473,2]
[401210023,1768045851380,-177.21892515,0.00017473,2]
[401210024,1768045851393,-299.03456507,0.00017478,10]
[401210025,1768045851405,-561.2,0.00017483,2]
[401210026,1768045851418,-151.0,0.00017485,2]
[401210027,1768045851430,-194.72792766,0.00017485,2]
[401210028,1768045851448,-151.0,0.00017485,2]
[401210029,1768045851461,-533.88981491,0.00017485,2]
[401210030,1768045851474,-1887.20841984,0.00017486,2]
[401210031,1768045851488,-150.0,0.0001749,2]
[401210032,1768045851501,-260.75602621,0.00017491,2]
[401210033,1768045851513,-252.68743637,0.00017491,2]
[401210034,1768045851525,-188.04348929,0.00017491,2]
[401210035,1768045851538,-177.21892515,0.00017491,2]
[401210036,1768045851551,-2000.0,0.000175,2]
[401210037,1768045851565,-150.0,0.00017506,2]
[401210038,1768045851580,-260.75602621,0.00017509,2]
[401210039,1768045851593,-252.68743637,0.00017509,2]
[401210040,1768045851606,-188.04348929,0.00017509,2]
[401210041,1768045851619,-177.21892515,0.00017509,2]
[401210042,1768045851631,-150.0,0.00017515,2]
[401210043,1768045851644,-150.0,0.0001752,2]
[401210044,1768045851657,-150.0,0.0001752,2]
[401210045,1768045851670,-260.75602621,0.00017527,2]
[401210046,1768045851682,-252.68743637,0.00017527,2]
[401210047,1768045851694,-188.04348929,0.00017527,2]
[401210048,1768045851708,-177.21892515,0.00017527,2]
[401210049,1768045851720,-1101.0,0.00017532,2]
[401210050,1768045851732,-600.0,0.00017534,2]
[401210051,1768045851746,-150.0,0.00017541,2]
[401210052,1768045851759,-260.75602621,0.00017545,2]
[401210053,1768045851772,-252.68743637,0.00017545,2]
[401210054,1768045851785,-188.04348929,0.00017545,2]
[401210055,1768045851798,-177.21892515,0.00017545,2]
[401210056,1768045851811,-150.0,0.0001755,2]